{"text_format":"3","workbook":"xlsx","n_sheets":2,"sheets":["Предмет","Лист2"],"not_rendered":{"external_links":1,"defined_names":8},"read":"whole","date_system":"1900"}

{"sheet":"Предмет","index":0,"n_rows":60,"n_cols":10,"rows_kept":60}
["№","Фамилия","Имя","Отчество","Класс","Класс участия","Балл","Макс. Балл","Статус","Учитель"]
[1,3,4,5,9,10,11,12,13,15]
[1,"Черемушкина","Софья","Михайловна",5,5,30,35,"победитель","Хайруллина Назиля Назиповна"]
[2,"Залаева","Лейла","Русланович",5,5,28,35,"победитель","Хайруллина Назиля Назиповна"]
[3,"Чермаков","Владислав","Станиславович",5,5,25,35,"победитель","Хайруллина Назиля Назиповна"]
[4,"Канцерюте","Милана","Линаровна",5,5,23,35,"призер","Хайруллина Назиля Назиповна"]
[5,"Шарантаева","Зарина","Альбертовна",5,5,22,{"$f":"H3","v":35},"призер","Хайруллина Назиля Назиповна"]
[6,"Колпаков","Ярослав","Игоревич",5,5,22,35,"призер","Хайруллина Назиля Назиповна"]
[7,"Зотина ","Дарья","Евгеньевна",5,5,22,35,"призер","Хайруллина Назиля Назиповна"]
[8,"Иванова","Елизавета","Дмитриевна",5,5,22,35,"призер","Хайруллина Назиля Назиповна"]
[9,"Глазкова","Диана","Владиславовна",5,5,21,{"$f":"H3","v":35},"призер","Хайруллина Назиля Назиповна"]
[10,"Мефтахова ","Индира","Ильгизаровна",5,5,21,35,"призер","Хайруллина Назиля Назиповна"]
[11,"Юртаев ","Таир","Айратович",5,5,21,35,"призер","Хайруллина Назиля Назиповна"]
[12,"Асанов","Михаил","Андреевич",5,5,20,35,"призер","Хайруллина Назиля Назиповна"]
[13,"Гибадуллина ","Риана","Равилевна",5,5,17,35,"участник","Хайруллина Назиля Назиповна"]
[14,"Быстров","Дмитрий","Сергеевич",5,5,17,{"$f":"H3","v":35},"участник","Хайруллина Назиля Назиповна"]
[15,"Галимова","Гузель","Айдаровна",5,5,16,35,"участник","Хайруллина Назиля Назиповна"]
[16,"Хамидуллина","Амина","Айнурович",5,5,16,35,"участник","Хайруллина Назиля Назиповна"]
[17,"Галиуллин ","Данил","Русланович",5,5,15,35,"участник","Хайруллина Назиля Назиповна"]
[18,"Плеханова","Мария","Александровна",5,5,15,{"$f":"H4","v":35},"участник","Хайруллина Назиля Назиповна"]
[19,"Прохорова ","Диана","Александровна",5,5,14,35,"участник","Хайруллина Назиля Назиповна"]
[20,"Сабирзянова","Азалия","Ринатовна",5,5,12,35,"участник","Хайруллина Назиля Назиповна"]
[21,"Мирзаянова","Амиля","Ильдаровна",7,7,36,40,"победитель","Старостина Елена Евгеньевна"]
[22,"Ткаченка","Яна","Андреевна",7,7,32,40,"призер","Старостина Елена Евгеньевна"]
[23,"Мокрушина","София","Андреевна",7,7,"30","40","призер","Старостина Елена Евгеньевна"]
[24,"Зубова ","Ариана","Максимовна",7,7,29,40,"призер","Шишина Анастасия Петровна"]
[25,"Нуриева ","Милана","Артуровна",7,7,"28","40","призер",{"$f":"$J$26","v":"Шишина Анастасия Петровна"}]
[26,"Тарасова","Александра","Андреевна",7,7,27,40,"призер",{"$f":"$J$26","v":"Шишина Анастасия Петровна"}]
[27,"Яруллина","Алина","Ильнаровна",7,7,26,40,"призер","Старостина Елена Евгеньевна"]
[28,"Юнусов ","Камиль","Ильдарович",7,7,25,40,"призер",{"$f":"$J$26","v":"Шишина Анастасия Петровна"}]
[29,"Краснова","Ксения","Алексеевна",9,9,47,90,"призер","Старостина Елена Евгеньевна"]
[30,"Карбонова","Ксения","Андреевна",9,9,46,90,"призер","Старостина Елена Евгеньевна"]
[31,"Холина","Полина","Васильевна",9,9,41,{"$f":"H31","v":90},"участник","Старостина Елена Евгеньевна"]
[32,"Мухаметшина","Альбина","Рамилевна",9,9,37,{"$f":"H32","v":90},"участник","Старостина Елена Евгеньевна"]
[33,"Хусаинова","Айсылу","Дамировна",9,9,35,{"$f":"H31","v":90},"участник","Старостина Елена Евгеньевна"]
[34,"Хабибуддин","Рузаль","Наилевич",9,9,34,{"$f":"H32","v":90},"участник","Старостина Елена Евгеньевна"]
[35,"Егорова","Аделина","Андреевна",9,9,33,{"$f":"H31","v":90},"участник","Старостина Елена Евгеньевна"]
[36,"Куляеев ","Камиль","Дамирович",9,9,32,{"$f":"H32","v":90},"участник","Старостина Елена Евгеньевна"]
[37,"Костюхина ","София","Семеновна",9,9,31,{"$f":"H31","v":90},"участник","Старостина Елена Евгеньевна"]
[38,"Шамсутдинова","Азалия","Рафисовна",9,9,29,{"$f":"H32","v":90},"участник","Старостина Елена Евгеньевна"]
[39,"Шаронова","Милена","Максимовна",9,9,28,{"$f":"H31","v":90},"участник","Старостина Елена Евгеньевна"]
[40,"Фазлыев","Данил","Рамилович",9,9,27,{"$f":"H32","v":90},"участник","Старостина Елена Евгеньевна"]
[41,"Андреев","Егор","демьянович",9,9,26,{"$f":"H31","v":90},"участник","Старостина Елена Евгеньевна"]
[42,"Широков","Роман","Евгеньевич",9,9,24,{"$f":"H32","v":90},"участник","Старостина Елена Евгеньевна"]
[43,"Антипова","Алена","Анатольевна",9,9,23,{"$f":"H31","v":90},"участник","Старостина Елена Евгеньевна"]
[44,"Королев","Богдан ","Александрович",9,9,21,{"$f":"H32","v":90},"участник","Старостина Елена Евгеньевна"]
[45,"Семенова","Алина","Романовна",9,9,20,{"$f":"H31","v":90},"участник","Старостина Елена Евгеньевна"]
[46,"Карташова","Ангелина","Никитична",9,9,18,{"$f":"H32","v":90},"участник","Старостина Елена Евгеньевна"]
[47,"Беченкова","Диана","Александровна",9,9,17,{"$f":"H31","v":90},"участник","Старостина Елена Евгеньевна"]
[48,"Плотникова ","Ангелина","Эдгаровна",9,9,15,{"$f":"H32","v":90},"участник","Старостина Елена Евгеньевна"]
[49,"Гимадиева","Алина","Айдаровна",9,9,13,{"$f":"H31","v":90},"участник","Старостина Елена Евгеньевна"]
[50,"Гафиятуллина","Аделина","Ленаровна",9,9,12,{"$f":"H32","v":90},"участник","Старостина Елена Евгеньевна"]
[51,"Габидуллина","Аделина","Динисовна",9,9,10,{"$f":"H31","v":90},"участник","Старостина Елена Евгеньевна"]
[52,"Кондратьева","Дарья","Эдуардовна",9,9,9,{"$f":"H32","v":90},"участник","Старостина Елена Евгеньевна"]
[53,"Денисова","Екатерина","Сергеевна",9,9,7,{"$f":"H31","v":90},"участник","Старостина Елена Евгеньевна"]
[54,"Лапицкая","Виктория","Евгеньевна",9,9,7,{"$f":"H32","v":90},"участник","Старостина Елена Евгеньевна"]
[55,"Смирнов","Артем","Сергеевич",11,11,32,65,"участник","Старостина Елена Евгеньевна"]
[56,"Тудиярова","Алина","Артемовна",11,11,24,65,"участник","Старостина Елена Евгеньевна"]
[57,"Ахметшина","Алсу","Алмазовна",11,11,18,65,"участник","Старостина Елена Евгеньевна"]
[58,"Агалина","Анна","Евгеньевна",11,11,12,65,"участник","Старостина Елена Евгеньевна"]

{"sheet":"Лист2","index":1,"n_rows":0,"n_cols":0,"rows_kept":0}